bitfinex-derivatives/quotes_ETHF0:USTF0_20240830
["timestamp","ask_amount","ask_price","bid_price","bid_amount"]
[1725044160154,3.60832098,2534.5,2534.2,0.39464]
[1725044160353,3.21371098,2534.5,2534.0,0.00394066]
[1725044160551,3.21371098,2534.5,2534.0,0.39862066]
[1725044160552,0.39464,2534.3,2534.0,0.39862066]
[1725044160960,0.39463,2534.4,2534.1,0.39467]
[1725044161163,3.60832098,2534.5,2534.2,0.39465]
[1725044161348,0.39465,2534.3,2534.0,0.39862066]
[1725044161549,0.39472,2533.8,2533.4,0.39477]
[1725044161759,3.60257,2533.5,2533.2,0.39481]
[1725044161961,3.60257,2533.5,2533.0,0.19781581]
[1725044161962,3.2078,2533.5,2533.0,0.19781581]
[1725044162158,3.2078,2533.5,2533.3,0.39479]
[1725044162358,3.60257,2533.5,2533.3,0.39479]
[1725044162561,3.2078,2533.5,2533.1,0.3952]
[1725044162758,3.2078,2533.5,2533.3,0.39478]
[1725044163057,3.2078,2533.5,2533.3,0.39479]
[1725044163259,3.2078,2533.5,2533.4,0.39478]
[1725044163460,3.60257,2533.5,2533.3,0.39479]
[1725044163763,3.60257,2533.5,2533.2,0.39481]
[1725044164068,3.2078,2533.5,2533.1,0.3952]
[1725044164266,3.2078,2533.2,2533.1,0.3952]
[1725044164460,3.60261,2533.2,2533.1,0.3952]
[1725044164663,3.2078,2533.2,2533.1,4.3432]
[1725044164862,0.39481,2533.3,2533.1,4.73802]
[1725044165064,4.19471,2533.6,2533.2,0.39481]
[1725044165267,3.2078,2533.3,2532.9,0.3952]
[1725044165564,3.2078,2533.6,2533.5,0.39477]
[1725044165762,3.60255,2533.6,2533.1,0.98706]
[1725044165965,3.60254,2533.7,2533.1,0.98706]
[1725044166171,0.39473,2533.8,2533.5,0.39476]
[1725044166361,3.2078,2533.6,2533.5,0.39476]
[1725044166564,0.39473,2533.8,2533.5,0.39476]
[1725044166867,3.2078,2533.9,2533.8,0.39472]
[1725044167261,2.1729,2534.0,2533.8,3.9464]
[1725044167463,0.39471,2533.9,2533.3,3.1978]
[1725044167762,2.1729,2534.0,2533.2,2.2407]
[1725044167763,0.39477,2533.5,2533.2,2.2407]
[1725044167960,0.39477,2533.5,2533.2,2.6355]
[1725044168361,0.39479,2533.4,2533.2,2.2407]
[1725044168564,0.39476,2533.6,2533.3,0.3948]
[1725044168771,3.60256,2533.6,2533.3,0.3948]
[1725044168969,0.39477,2533.5,2533.2,2.6355]
[1725044169170,3.2078,2533.6,2533.2,2.2407]
[1725044169171,0.39479,2533.4,2533.2,2.2407]
[1725044169374,0.39477,2533.5,2533.2,2.2407]
[1725044169562,0.39476,2533.6,2533.3,0.39479]
[1725044169961,0.39476,2533.6,2533.2,2.2407]
[1725044170164,0.39475,2533.6,2533.3,0.3948]
[1725044170570,0.39475,2533.6,2533.2,2.2407]
[1725044170571,0.39475,2533.6,2533.4,0.39478]
[1725044170875,0.39474,2533.7,2533.2,2.2407]
[1725044171072,5.83503,2533.8,2533.5,0.39476]
[1725044171564,2.1729,2534.0,2533.9,0.3947]
[1725044171760,2.1729,2534.0,2533.6,0.39474]
[1725044171761,0.39471,2533.9,2533.6,0.39474]
[1725044172367,0.39472,2533.8,2533.5,0.39475]
[1725044172572,3.60251,2533.9,2533.3,0.98699]
[1725044172770,3.60251,2533.9,2533.6,0.39474]
[1725044173766,3.60251,2533.9,2533.6,0.39475]
[1725044173977,7.1542,2533.9,2533.2,2.35301675]
[1725044174171,0.39474,2533.7,2533.4,0.39478]
[1725044174559,5.3128,2533.9,2533.5,0.39476]
[1725044174560,0.39473,2533.8,2533.5,0.39476]
[1725044174759,5.3128,2533.9,2533.6,0.39474]
[1725044174760,5.70751,2533.9,2533.6,0.39474]
[1725044174965,0.39472,2533.8,2533.5,0.39475]
[1725044175365,5.3128,2533.9,2533.3,0.3952]
[1725044175571,0.39472,2533.8,2533.5,0.39475]
[1725044175867,5.3128,2533.9,2533.2,2.35301675]
[1725044176070,0.39478,2533.5,2533.3,0.3952]
[1725044176765,0.39478,2533.5,2533.2,2.63551]
[1725044177169,2.2529,2533.8,2533.7,0.39473]
[1725044177372,3.2078,2533.9,2533.8,0.39472]
[1725044177667,3.2078,2533.9,2533.8,4.34112]
[1725044177868,3.2078,2533.9,2533.7,0.39472]
[1725044178066,3.2078,2533.9,2533.7,0.39473]
[1725044178767,3.2078,2533.9,2533.7,0.39472]
[1725044178971,3.2078,2533.9,2533.6,3.41]
[1725044179172,0.39473,2533.8,2533.4,0.11396648]
[1725044179373,3.2078,2533.9,2533.5,0.39476]
[1725044179568,0.39473,2533.8,2533.4,0.39477]
[1725044179766,3.2078,2533.6,2533.2,2.2407]
[1725044180072,3.2078,2533.6,2533.2,2.6359]
[1725044180463,3.2078,2533.6,2533.3,0.39479]
[1725044180663,3.2078,2533.9,2533.2,2.6359]
[1725044180963,3.2078,2533.9,2533.5,0.39476]
[1725044180964,3.60251,2533.9,2533.5,0.39476]
[1725044181176,0.39472,2533.8,2533.2,3.62292]
[1725044181369,3.60251,2533.9,2533.6,0.39475]
[1725044181572,3.60251,2533.9,2533.5,0.39476]
[1725044181773,3.2078,2533.9,2533.7,0.39473]
[1725044182277,2.1729,2534.0,2533.7,0.39472]
[1725044182673,2.1729,2534.0,2533.8,0.39471]
[1725044182869,2.1729,2534.0,2533.9,0.3947]
[1725044183275,0.00591098,2534.5,2534.4,0.39462]
[1725044183575,0.00591098,2534.5,2534.4,3.60242]
[1725044183775,2.2859,2535.2,2534.5,0.98653]
[1725044183973,3.2078,2535.6,2534.7,3.41]
[1725044184278,3.2078,2535.6,2535.1,3.80451]
[1725044184466,0.39447,2535.4,2534.8,2.56496]
[1725044184666,3.2078,2535.3,2534.8,2.1704]
[1725044184868,3.21371098,2535.3,2534.8,2.17631098]
[1725044185272,2.2398,2535.2,2534.8,2.17631098]
[1725044185670,2.2398,2535.2,2534.8,2.57086098]
[1725044186073,3.2078,2535.0,2534.8,0.00591098]
[1725044186277,0.39455,2534.9,2534.8,0.00591098]
[1725044186475,4.33935,2534.9,2534.8,0.00591098]
[1725044186871,4.33935,2534.9,2534.0,6.7994]
[1725044186872,0.39463,2534.4,2533.8,0.39471]
[1725044187175,0.39463,2534.4,2533.9,0.3947]
[1725044187176,3.2078,2534.4,2533.9,0.3947]
[1725044187373,3.2078,2534.8,2533.7,7.7578]
[1725044187573,3.2078,2534.8,2534.3,0.39463]
[1725044187773,8.02742,2535.1,2534.0,7.7578]
[1725044188085,8.02743,2535.1,2534.6,0.39459]
[1725044188469,0.39455,2534.9,2534.1,4.46]
[1725044188672,7.6329,2535.1,2534.3,4.55]
[1725044188998,7.6329,2535.1,2534.8,0.39456]
[1725044189283,0.40041098,2535.3,2534.8,0.39456]
[1725044189490,0.00591098,2535.3,2534.6,4.55]
[1725044189777,3.2078,2535.1,2534.9,0.39454]
[1725044189982,3.2078,2535.1,2535.0,0.39453]
[1725044190385,3.2078,2535.1,2535.0,4.33933]
[1725044190583,3.2078,2535.1,2534.9,0.39454]
[1725044190772,2.24781098,2535.3,2534.9,0.39454]
[1725044190773,0.00591098,2535.3,2535.0,4.55]
[1725044190968,0.00591098,2535.3,2535.0,8.4948]
[1725044191168,0.00591098,2535.3,2535.0,4.55]
[1725044191374,0.00591098,2535.3,2534.8,2.178]
[1725044191688,0.00591098,2535.3,2534.8,2.37972796]
[1725044191984,0.00591098,2535.3,2535.2,0.3945]
[1725044192484,2.2419,2535.8,2535.6,0.39443]
[1725044192685,2.2419,2535.8,2535.7,0.39442]
[1725044192986,2.2419,2535.8,2535.6,0.39443]
[1725044193180,3.2078,2535.7,2535.3,4.55]
[1725044193480,3.2078,2535.7,2535.2,0.40111098]
[1725044193680,2.24781098,2535.8,2535.6,0.39443]
[1725044194280,2.24781098,2535.8,2535.3,4.55]
[1725044194480,0.00591098,2535.8,2535.7,0.39442]
[1725044194984,0.00591098,2535.8,2535.7,4.33842]
[1725044195186,3.94991098,2535.8,2535.3,0.3944]
[1725044195389,5.3398,2535.7,2535.2,0.00591098]
[1725044195692,7.6378,2535.7,2535.2,0.00591098]
[1725044196194,0.39448,2535.3,2535.2,0.00591098]
[1725044196386,8.62389,2535.7,2535.2,0.00591098]
[1725044196686,0.39447,2535.4,2535.2,0.00591098]
[1725044197087,0.39447,2535.4,2533.7,0.3952]
[1725044197088,0.98632,2535.1,2533.7,0.3952]
[1725044197389,0.3946,2534.6,2533.8,3.603]
[1725044197584,0.39461,2534.5,2533.8,3.603]
[1725044197788,2.132,2534.4,2534.1,0.39467]
[1725044197979,2.52663,2534.4,2534.0,0.39468]
[1725044198183,2.52663,2534.4,2533.8,3.603]
[1725044198184,0.39464,2534.3,2533.8,3.99771]
[1725044198480,2.52663,2534.4,2533.9,0.3947]
[1725044198681,2.132,2534.4,2534.0,0.39468]
[1725044198894,0.39466,2534.2,2533.8,3.603]
[1725044199186,0.39467,2534.1,2533.8,3.603]
[1725044199385,3.60247,2534.2,2533.8,3.603]
[1725044199789,0.39467,2534.1,2533.8,3.603]
[1725044199996,2.132,2534.4,2533.8,3.603]
[1725044200293,2.132,2534.4,2534.1,0.39467]
[1725044200495,2.132,2534.4,2533.9,4.55]
[1725044200699,0.00591098,2534.5,2533.9,8.4964]
[1725044200993,0.00591098,2534.5,2534.4,0.39462]
[1725044201483,0.00591098,2534.5,2534.4,4.34022]
[1725044201681,0.40053098,2534.5,2534.0,0.39468]
[1725044201885,0.00591098,2534.5,2534.2,0.39465]
[1725044202084,0.00591098,2534.5,2534.4,0.39462]
[1725044202584,0.00591098,2534.5,2534.4,4.34022]
[1725044202784,0.00591098,2534.5,2534.4,10.34022]
[1725044202985,5.4934,2535.3,2534.4,18.68997]
[1725044203195,2.0617421,2535.8,2535.3,0.39448]
[1725044203196,2.2696,2535.4,2535.3,0.39448]
[1725044203401,2.2696,2535.4,2534.8,4.55]
[1725044203692,2.2696,2535.4,2534.9,0.39454]
[1725044203999,0.39452,2535.1,2534.7,0.39458]
[1725044204192,3.2078,2535.2,2534.8,0.00591098]
[1725044204595,3.2078,2535.2,2534.8,0.40047098]
[1725044204596,0.39451,2535.2,2534.8,0.40047098]
[1725044204895,0.39451,2535.2,2533.9,0.3947]
[1725044204896,0.39463,2534.4,2533.9,0.3947]
[1725044205092,3.2078,2534.2,2533.8,0.3952]
[1725044205392,3.2078,2534.0,2533.9,0.39469]
[1725044205794,3.2078,2534.0,2533.9,4.34109]
[1725044206185,3.2078,2534.0,2533.8,0.3952]
[1725044206385,3.60249,2534.0,2533.8,0.3952]
[1725044206594,3.60249,2534.0,2533.4,2.3338]
[1725044206595,3.9464,2533.9,2533.2,0.3948]
[1725044206895,3.9464,2533.9,2532.9,4.3995]
[1725044206896,3.2078,2533.4,2533.3,0.3952]
[1725044207483,3.2078,2533.4,2533.3,0.79]
[1725044208099,3.2078,2533.4,2533.3,0.3952]
[1725044208687,3.2078,2533.4,2533.3,10.7372]
[1725044208885,0.00591098,2533.8,2533.7,0.39473]
[1725044209290,0.00591098,2533.8,2533.7,14.53577]
[1725044209591,3.2078,2534.3,2534.2,0.39466]
[1725044209787,3.2078,2534.3,2534.2,4.34026]
[1725044210290,3.2078,2534.3,2534.0,0.39468]
[1725044210593,3.2078,2534.3,2534.0,0.39469]
[1725044210783,3.2078,2534.3,2533.9,0.00591098]
[1725044210784,3.2078,2534.3,2534.1,3.9464]
[1725044211090,0.00591098,2534.4,2534.3,0.39464]
[1725044211291,0.00591098,2534.4,2534.3,4.34024]
[1725044211507,0.00591098,2534.4,2534.3,0.39464]
[1725044211887,0.00591098,2534.4,2534.3,4.34024]
[1725044213005,0.00591098,2534.4,2534.2,0.39465]
[1725044213291,0.00591098,2534.4,2534.3,0.39464]
[1725044213696,0.00591098,2534.4,2534.3,4.34024]
[1725044214196,0.00591098,2534.4,2534.3,16.06932768]
[1725044214499,0.00591098,2534.4,2534.3,17.45113768]
[1725044214893,3.2078,2535.3,2535.1,0.39452]
[1725044215294,2.53966,2535.5,2534.7,2.2541]
[1725044215295,2.1452,2535.5,2534.7,2.2541]
[1725044215502,2.1452,2535.5,2534.9,0.39454]
[1725044215503,3.2078,2535.3,2534.9,0.39454]
[1725044215694,3.60229,2535.3,2534.9,0.39454]
[1725044215998,0.3945,2535.2,2534.8,2.66045]
[1725044216198,0.3945,2535.2,2534.9,0.39455]
[1725044216396,3.2078,2535.3,2535.0,0.39453]
[1725044217202,3.2078,2535.3,2534.9,0.39454]
[1725044217395,3.60229,2535.3,2534.9,0.39454]
[1725044217993,3.60229,2535.3,2535.0,0.39453]
[1725044218201,3.60229,2535.3,2534.9,0.39454]
[1725044218402,0.3945,2535.2,2534.9,0.39454]
[1725044218604,3.60229,2535.3,2535.0,0.39453]
[1725044219297,3.60229,2535.3,2534.7,2.2541]
[1725044219298,3.2078,2535.3,2535.1,0.39452]
[1725044219503,3.60229,2535.3,2535.0,0.39452]
[1725044219700,3.2078,2535.3,2535.1,0.39451]
[1725044219902,3.2078,2535.3,2535.0,0.39452]
[1725044220298,3.2078,2535.3,2535.2,0.3945]
[1725044220506,3.2078,2535.3,2534.7,2.2541]
[1725044220704,3.60229,2535.3,2535.0,0.39452]
[1725044220907,3.60229,2535.3,2534.7,2.2541]
[1725044221104,3.2078,2535.3,2534.9,0.39454]
[1725044221295,3.60229,2535.3,2534.9,0.39454]
[1725044221500,3.60229,2535.3,2535.0,0.39453]
[1725044221696,3.2078,2535.3,2535.0,0.39453]
[1725044221897,3.60229,2535.3,2535.0,0.39453]
[1725044222101,0.39451,2535.2,2534.7,2.2541]
[1725044222407,0.39451,2535.2,2534.8,0.39455]
[1725044222598,3.2078,2535.3,2535.0,0.39452]
[1725044222794,3.60229,2535.3,2535.0,0.39452]
[1725044223196,3.60229,2535.3,2534.9,0.39454]
[1725044223401,3.60229,2535.3,2535.0,0.39453]
[1725044224205,3.2078,2535.3,2535.1,0.39451]
[1725044224601,3.60229,2535.3,2535.0,0.39452]
[1725044225704,3.2078,2535.3,2535.1,0.39452]
[1725044225902,3.60229,2535.3,2535.0,0.39452]
[1725044226409,3.2078,2535.3,2535.0,0.39452]
[1725044226607,3.60229,2535.3,2535.0,0.39452]
[1725044227009,3.60229,2535.3,2534.9,0.39454]
[1725044227214,0.39451,2535.2,2534.6,0.11351351]
[1725044227403,3.6023,2535.3,2534.6,0.98648]
[1725044227600,3.2078,2535.3,2534.7,4.55]
[1725044227797,3.21371098,2535.4,2535.2,0.3945]
[1725044228000,3.21371098,2535.4,2534.8,0.98641]
[1725044228001,3.21371098,2535.4,2534.8,2.2124]
[1725044228406,3.21371098,2535.4,2534.7,4.55]
[1725044228604,4.19990098,2535.4,2534.7,4.55]
[1725044228802,3.2078,2535.1,2534.5,2.43163275]
[1725044229001,2.2613,2535.0,2534.5,3.41815275]
[1725044229202,2.2613,2535.0,2534.9,0.39455]
[1725044229509,3.21371098,2535.4,2535.0,0.39453]
[1725044229710,3.21371098,2535.4,2535.3,0.39448]
[1725044229711,0.00591098,2535.4,2535.3,0.39448]
[1725044230113,0.00591098,2535.4,2535.3,4.33848]
[1725044230297,0.00591098,2535.4,2535.3,0.39448]
[1725044230703,0.00591098,2535.4,2535.3,4.33848]
[1725044231105,0.00591098,2535.4,2535.3,5.3247]
[1725044231810,0.00591098,2535.4,2535.3,1.3807]
[1725044232011,0.00591098,2535.4,2535.3,0.39448]
[1725044232414,0.00591098,2535.4,2535.3,4.33848]
[1725044232911,0.00591098,2535.4,2535.3,5.3247]
[1725044233416,0.00591098,2535.4,2535.3,6.42236239]
[1725044234420,0.00591098,2535.4,2535.3,5.83134239]
[1725044235118,0.00591098,2535.4,2535.3,0.3952]
[1725044235414,0.00591098,2535.4,2535.3,4.73368]
[1725044235711,0.00591098,2535.4,2535.3,5.7199]
[1725044236014,3.2078,2535.7,2535.6,0.39444]
[1725044236311,3.2078,2535.7,2535.6,4.33844]
[1725044237226,3.2078,2535.8,2535.4,0.00591098]
[1725044237515,3.2078,2535.8,2535.7,0.39442]
[1725044238208,3.2078,2535.8,2535.4,0.99208098]
[1725044238209,3.2078,2535.8,2535.6,0.39443]
[1725044239304,3.2078,2535.8,2535.7,0.39442]
[1725044240118,3.2078,2535.8,2535.7,4.33842]
[1725044240412,4.74776985,2536.7,2535.7,6.20127239]
[1725044240614,2.0617421,2537.0,2536.9,0.39424]
[1725044240804,2.2069,2537.6,2537.0,4.94421]
[1725044241005,5.4147,2537.6,2537.0,4.55]
[1725044241217,5.4147,2537.6,2537.0,4.94422]
[1725044241425,5.4147,2537.6,2537.0,4.55]
[1725044241726,5.42061098,2537.6,2537.0,4.55591098]
[1725044241903,5.42061098,2537.6,2537.0,4.95012098]
[1725044242912,5.42061098,2537.6,2537.0,4.55591098]
[1725044243213,5.42061098,2537.6,2537.0,0.00591098]
[1725044243411,2.3367,2537.5,2537.0,0.00591098]
[1725044243903,2.3367,2537.5,2537.0,0.40012098]
[1725044244103,2.3367,2537.5,2537.1,0.3942]
[1725044245106,5.42061098,2537.6,2537.1,0.3942]
[1725044245302,5.42061098,2537.6,2537.2,0.78859]
[1725044245521,3.21371098,2537.6,2537.4,0.39415]
[1725044245716,3.21371098,2537.6,2537.3,4.55]
[1725044245914,3.21371098,2537.6,2537.3,4.94416]
[1725044246214,3.21371098,2537.6,2537.3,4.55]
[1725044246418,3.21371098,2537.6,2537.4,0.39415]
[1725044246619,3.21371098,2537.6,2537.5,0.39414]
[1725044246815,2.1116,2538.0,2537.5,6.3944]
[1725044247026,3.2078,2538.4,2538.0,0.39406]
[1725044247209,3.2078,2538.4,2537.9,4.94407]
[1725044247920,3.21371098,2538.4,2537.9,4.94407]
[1725044249028,3.21371098,2538.4,2537.9,4.55]
[1725044249215,5.51681098,2538.4,2537.9,4.55]
[1725044249420,3.2078,2538.1,2537.9,4.55]
[1725044249912,5.91082098,2538.4,2537.9,4.55]
[1725044250116,2.2951,2538.3,2537.9,4.55]
[1725044250310,2.2951,2538.3,2538.0,0.39406]
[1725044250511,2.2951,2538.3,2538.1,0.39405]
[1725044250818,2.2951,2538.3,2537.9,4.94407]
[1725044251118,2.2951,2538.3,2537.9,4.55]
[1725044251420,2.2951,2538.3,2537.9,4.94408]
[1725044251719,2.2951,2538.3,2537.9,4.55]
[1725044251916,2.2951,2538.3,2537.9,4.94407]
[1725044252121,2.2951,2538.3,2537.9,4.55]
[1725044252122,3.2078,2538.1,2537.9,4.55]
[1725044253919,3.2078,2538.1,2538.0,0.39407]
[1725044254616,3.2078,2538.1,2538.0,0.78847]
[1725044255123,5.5029,2538.3,2538.0,0.78847]
[1725044255827,5.5029,2538.3,2538.1,0.39405]
[1725044256123,5.5029,2538.3,2538.0,0.78845]
[1725044257522,5.5029,2538.3,2538.0,0.3944]
[1725044257523,5.89692,2538.3,2538.0,0.3944]
[1725044257715,5.89692,2538.3,2537.7,0.58970326]
[1725044257716,0.39407,2538.0,2537.7,0.58970326]
[1725044257910,0.39407,2538.0,2537.8,0.3944]
[1725044258118,3.2078,2538.0,2537.8,0.3944]
[1725044258323,3.60187,2538.0,2537.8,0.3944]
[1725044258625,0.98521,2537.9,2537.6,0.3944]
[1725044258928,0.39414,2537.6,2537.5,0.3944]
[1725044259316,3.57577,2537.6,2537.5,0.3944]
[1725044259628,0.39417,2537.3,2537.1,0.3942]
[1725044259814,3.2078,2537.2,2537.1,0.3942]
[1725044260426,3.2078,2537.2,2537.0,5.14944563]
[1725044260725,3.2078,2537.1,2537.0,5.54365563]
[1725044260916,3.602,2537.1,2537.0,0.00591098]
[1725044261119,8.52912,2537.1,2537.0,0.00591098]
[1725044261521,10.72082,2537.1,2537.0,0.00591098]
[1725044262122,17.70634,2537.1,2537.0,0.00591098]
[1725044262331,0.39428,2536.6,2536.5,0.3944]
[1725044262518,3.60208,2536.6,2536.5,0.3944]
[1725044262823,3.60208,2536.6,2536.1,0.3944]
[1725044262824,0.39434,2536.2,2536.1,0.3944]
[1725044263029,0.39438,2536.0,2535.9,5.066491]
[1725044263233,0.39438,2536.0,2535.9,0.122091]
[1725044263730,0.39438,2536.0,2535.9,0.3944]
[1725044264121,2.56617,2536.1,2535.9,0.3944]
[1725044264418,2.1718,2536.1,2535.7,0.00591098]
[1725044264728,3.2078,2535.8,2535.7,0.00591098]
[1725044265023,3.2078,2535.8,2535.7,4.34433098]
[1725044265216,3.2078,2535.8,2535.7,10.34433098]
[1725044265824,3.2078,2535.8,2535.7,12.66223098]
[1725044266019,0.00591098,2536.2,2535.8,0.3944]
[1725044266221,0.00591098,2536.2,2536.1,4.55]
[1725044267221,0.40025098,2536.2,2535.8,4.55]
[1725044267526,0.00591098,2536.2,2535.8,4.55]
[1725044267726,0.40027098,2536.2,2535.8,4.55]
[1725044268026,0.00591098,2536.2,2535.8,4.55]
[1725044268232,0.40026098,2536.2,2535.8,4.55]
[1725044268435,0.39436,2536.1,2535.8,4.55]
[1725044268733,0.00591098,2536.2,2535.8,4.55]
[1725044269234,3.2078,2535.9,2535.8,4.55]
[1725044270024,0.39441,2535.8,2535.7,0.00591098]
[1725044270229,0.39441,2535.8,2534.9,4.55]
[1725044270230,0.39453,2535.0,2534.9,4.55]
[1725044270430,0.39453,2535.0,2534.6,3.2078]
[1725044270431,4.19413,2535.1,2534.7,0.3952]
[1725044270725,0.39456,2534.9,2534.7,0.3952]
[1725044270928,0.39456,2534.8,2534.7,0.3952]
[1725044271724,0.39455,2534.9,2534.7,0.3952]
[1725044272924,3.2078,2534.8,2534.7,0.3952]
[1725044274423,3.2078,2534.8,2534.6,4.67408187]
[1725044274620,3.2078,2534.8,2534.7,0.3952]
[1725044275326,3.60231,2535.2,2534.7,4.73458]
[1725044275527,0.39453,2535.0,2534.7,0.3952]
[1725044275736,3.2078,2534.8,2534.7,0.3952]
[1725044275922,3.16624,2535.3,2534.7,0.3952]
[1725044275923,3.60235,2534.9,2534.7,0.3952]
[1725044276125,0.39455,2534.9,2534.7,0.3952]
[1725044276328,0.39459,2534.6,2534.5,0.00591098]
[1725044276522,3.60239,2534.6,2534.5,0.00591098]
[1725044277233,3.60239,2534.6,2534.1,4.94467]
[1725044277234,0.39467,2534.1,2534.0,0.3952]
[1725044277432,0.98659,2534.4,2534.0,0.3952]
[1725044277633,3.60247,2534.1,2534.0,0.3952]
[1725044277823,3.2078,2534.1,2534.0,0.3952]
[1725044278223,3.60247,2534.1,2534.0,0.3952]
[1725044278839,3.2078,2534.1,2534.0,0.3952]
[1725044279130,3.2078,2534.1,2534.0,0.78989]
[1725044279324,3.2078,2534.1,2534.0,0.3952]
[1725044279731,3.2078,2534.1,2534.0,4.73629]
[1725044279932,0.39464,2534.4,2534.1,0.39467]
[1725044280132,3.2078,2534.2,2534.1,0.39467]
[1725044280438,3.2078,2534.5,2534.4,0.39462]
[1725044280640,0.00591098,2534.8,2534.7,0.39458]
[1725044280641,3.21371098,2534.8,2534.7,0.39458]
[1725044280830,3.21371098,2534.8,2534.7,8.88938]
[1725044281327,0.00591098,2534.8,2534.7,14.88938]
[1725044281532,3.2078,2535.2,2534.7,15.48125]
[1725044281735,3.2078,2535.2,2535.1,0.39452]
[1725044282036,3.2078,2535.2,2535.1,4.33932]
[1725044283228,0.00591098,2535.4,2535.3,0.39448]
[1725044283440,0.00591098,2535.4,2535.3,8.88848]
[1725044283749,0.00591098,2535.4,2534.8,5.36938]
[1725044283750,0.00591098,2535.4,2533.7,4.9448]
[1725044283938,3.2078,2533.1,2531.7,0.3952]
[1725044284243,3.2078,2532.3,2532.0,0.39499]
[1725044284428,3.2078,2532.3,2531.8,2.1426]
[1725044284429,2.22583268,2532.3,2532.1,3.9496]
[1725044284632,3.2078,2533.0,2532.5,0.39492]
[1725044284843,3.21372323,2533.0,2532.6,2.1426]
[1725044285141,3.21372323,2533.0,2532.6,6.6559]
[1725044285333,3.2078,2532.7,2532.6,6.6559]
[1725044285841,0.00592323,2533.0,2532.6,16.6047]
[1725044286144,0.00592323,2533.0,2532.6,6.6559]
[1725044286326,3.2078,2532.8,2532.6,6.6559]
[1725044286524,3.2078,2532.8,2532.6,4.4423]
[1725044286729,3.2078,2532.8,2532.6,8.3903]
[1725044288236,3.2078,2532.8,2532.6,4.4423]
[1725044289339,0.00592323,2533.0,2532.8,0.39486]
[1725044289544,0.00592323,2533.0,2532.7,0.39488]
[1725044289753,0.00592323,2533.0,2532.6,4.4423]
[1725044290136,0.00592323,2533.0,2532.6,4.8372]
[1725044290443,0.00592323,2533.0,2532.7,0.39488]
[1725044290642,0.00592323,2533.0,2532.6,4.8372]
[1725044290842,0.00592323,2533.0,2532.6,4.4423]
[1725044291041,0.00592323,2533.0,2532.7,0.39489]
[1725044291246,0.00592323,2533.0,2532.6,4.8372]
[1725044292443,3.94992323,2533.0,2532.6,2.1426]
[1725044292835,3.94992323,2533.0,2532.6,2.5375]
[1725044293835,3.2078,2532.8,2532.6,2.1426]
[1725044294036,3.2078,2532.8,2532.6,2.5375]
[1725044294443,3.2078,2532.8,2532.7,0.3952]
[1725044295338,7.1518,2532.8,2532.7,0.3952]
[1725044296445,7.1518,2532.8,2532.2,6.7435]
[1725044296446,8.74499,2532.8,2531.7,0.19395182]
[1725044296744,0.19403751,2532.9,2531.5,2.1548]
[1725044296745,6.35547677,2531.8,2531.5,2.1548]
[1725044296943,3.14767677,2531.6,2531.5,0.3952]
[1725044297538,3.14767677,2531.6,2531.5,0.79028]
[1725044297743,3.14767677,2531.6,2531.5,0.3952]
[1725044299150,3.2078,2531.8,2531.5,0.3952]
[1725044299151,3.2078,2531.8,2531.5,0.79027]
[1725044299451,6.35547677,2531.8,2531.5,0.79027]
[1725044299835,6.35547677,2531.8,2531.5,0.3952]
[1725044300462,3.14767677,2531.6,2531.5,0.3952]
[1725044300647,3.14767677,2531.6,2531.3,0.00592323]
[1725044300952,3.2078,2531.8,2531.3,0.00592323]
[1725044300953,6.75056677,2531.4,2531.3,0.00592323]
[1725044301159,6.75056677,2531.4,2530.5,4.80643]
[1725044301160,3.2078,2531.4,2530.5,0.12320194]
[1725044301341,5.96027677,2530.6,2530.3,0.3952]
[1725044301558,2.75247677,2530.5,2530.3,0.79046]
[1725044301844,2.75247677,2530.5,2530.3,0.3952]
[1725044302450,2.75247677,2530.5,2530.3,0.79046]
[1725044302648,2.75247677,2530.5,2530.3,0.3952]
[1725044303047,2.75247677,2530.5,2530.3,0.79046]
[1725044303350,2.75247677,2530.5,2530.3,0.3952]
[1725044304142,3.2078,2530.6,2530.3,0.79046]
[1725044304347,2.75247677,2530.4,2530.3,0.3952]
[1725044304747,2.75247677,2530.4,2530.3,0.79046]
[1725044305251,3.2078,2530.6,2530.3,0.79046]
[1725044305450,3.2078,2530.6,2530.4,0.19660811]
[1725044305451,2.75247677,2530.5,2530.4,0.19660811]
[1725044305954,2.75247677,2530.5,2530.4,0.39525]
[1725044306154,2.75247677,2530.5,2530.4,0.5936169]
[1725044306354,3.0268,2531.0,2530.4,9.952]
[1725044306656,5.77927677,2531.0,2530.7,4.94519]
[1725044307038,5.77927677,2531.0,2530.7,4.55]
[1725044307243,5.77927677,2531.0,2530.5,4.55]
[1725044307244,3.0268,2531.0,2530.5,4.55]
[1725044307441,3.2078,2530.7,2530.6,0.39522]
[1725044307848,0.3951,2531.4,2530.8,0.39518]
[1725044308047,5.96027677,2530.9,2530.8,0.39518]
[1725044308244,2.75247677,2530.9,2530.8,0.39519]
[1725044308445,2.75247677,2530.9,2530.7,2.109]
[1725044308655,2.75247677,2530.8,2530.7,2.109]
[1725044308851,2.75247677,2530.8,2530.6,2.54001]
[1725044309070,5.96027677,2530.7,2530.6,2.1448]
[1725044309555,5.96027677,2530.7,2530.5,5.07215821]
[1725044309853,5.96027677,2530.7,2530.6,0.39522]
[1725044310561,3.2078,2530.7,2530.6,0.39522]
[1725044310750,3.0178,2531.0,2530.9,0.39517]
[1725044311056,3.2078,2531.5,2531.2,0.39512]
[1725044311261,2.75247677,2531.3,2531.1,4.55]
[1725044312050,0.00592323,2531.7,2531.1,4.55]
[1725044312358,3.2078,2532.2,2531.9,0.39501]
[1725044312657,2.55247677,2532.0,2531.9,0.39501]
[1725044312955,2.55247677,2532.1,2532.0,0.39499]